fUSD/lending_fUSD_20250905
["ID","MTS","AMOUNT","RATE_DAILY","PERIOD"]
[383786604,1757116239283,-400.0,0.00059295,120]
[383786606,1757116239293,-400.0,0.00059295,14]
[383786608,1757116239302,-416.66350938,0.00059295,120]
[383786610,1757116239312,-400.0,0.00059295,120]
[383786612,1757116239321,-400.0,0.00059295,120]
[383786614,1757116239331,-400.0,0.00059295,120]
[383786616,1757116239341,-400.0,0.00059295,120]
[383786618,1757116239350,-400.0,0.00059295,120]
[383786620,1757116239359,-400.0,0.00059295,118]
[383786622,1757116239368,-400.0,0.00059295,120]
[383786624,1757116239378,-400.0,0.00059395,120]
[383786626,1757116239387,-249.35505936,0.00059395,120]
[383786628,1757116239396,-1000.0,0.000595,90]
[383786630,1757116239408,-500.0,0.000595,30]
[383786632,1757116239422,-400.0,0.00059569,120]
[383786634,1757116239432,-400.0,0.00059569,120]
[383786636,1757116239442,-400.0,0.00059569,14]
[383786638,1757116239451,-400.0,0.00059569,120]
[383786640,1757116239462,-400.0,0.00059569,120]
[383786642,1757116239471,-400.0,0.00059569,120]
[383786644,1757116239480,-420.62,0.00059569,120]
[383786646,1757116239491,-400.0,0.00059569,118]
[383786648,1757116239500,-400.0,0.00059569,120]
[383786650,1757116239510,-168.63,0.0005984,2]
[383786651,1757116239519,-400.0,0.00059843,120]
[383786653,1757116239528,-400.0,0.00059843,120]
[383786655,1757116239537,-400.0,0.00059843,14]
[383786657,1757116239547,-400.0,0.00059843,120]
[383786659,1757116239556,-400.0,0.00059843,120]
[383786661,1757116239565,-400.0,0.00059843,120]
[383786663,1757116239574,-400.0,0.00059843,118]
[383786665,1757116239584,-400.0,0.00059843,120]
[383786667,1757116239593,-155.56,0.00059932,2]
[383786669,1757116239602,-1791.2,0.00059989,30]
[383786671,1757116239611,-400.0,0.00059999,120]
[383786673,1757116239620,-400.0,0.00059999,120]
[383786675,1757116239629,-400.0,0.00059999,120]
[383786677,1757116239638,-400.0,0.00059999,120]
[383786679,1757116239649,-400.0,0.00059999,120]
[383786681,1757116239658,-400.0,0.00059999,120]
[383786683,1757116239667,-400.0,0.00059999,120]
[383786685,1757116239676,-400.0,0.00059999,120]
[383786687,1757116239685,-400.0,0.00059999,120]
[383786689,1757116239694,-400.0,0.00059999,120]
[383786691,1757116239704,-400.0,0.00059999,120]
[383786693,1757116239714,-400.0,0.00059999,120]
[383786695,1757116239723,-400.0,0.00059999,120]
[383786697,1757116239735,-295.58326331,0.00059999,120]
[383786699,1757116239745,-400.0,0.00059999,120]
[383786701,1757116239755,-400.0,0.00059999,120]
[383786703,1757116239765,-400.0,0.00059999,120]
[383786705,1757116239774,-400.0,0.00059999,120]
[383786707,1757116239783,-400.0,0.00059999,120]
[383786709,1757116239792,-400.0,0.00059999,120]
[383786711,1757116239801,-400.0,0.00059999,120]
[383786713,1757116239811,-400.0,0.00059999,120]
[383786715,1757116239820,-400.0,0.00059999,120]
[383786717,1757116239830,-400.0,0.00059999,120]
[383786719,1757116239839,-401.34078434,0.00059999,120]
[383786721,1757116239848,-400.0,0.00059999,120]
[383786722,1757116239857,-400.0,0.00059999,120]
[383786725,1757116239867,-400.0,0.00059999,120]
[383786726,1757116239877,-400.0,0.00059999,120]
[383786728,1757116239886,-400.0,0.00059999,120]
[383786731,1757116239896,-400.0,0.00059999,120]
[383786732,1757116239907,-400.0,0.00059999,120]
[383786737,1757116239917,-400.0,0.00059999,120]
[383786739,1757116240060,-400.0,0.00059999,120]
[383786740,1757116240070,-400.0,0.00059999,120]
[383786742,1757116240080,-400.0,0.00059999,120]
[383786744,1757116240089,-400.0,0.00059999,120]
[383786746,1757116240098,-400.0,0.00059999,120]
[383786748,1757116240108,-400.0,0.00059999,120]
[383786750,1757116240119,-400.0,0.00059999,120]
[383786752,1757116240130,-404.05,0.00059999,120]
[383786754,1757116240139,-400.0,0.00059999,120]
[383786756,1757116240150,-400.0,0.00059999,120]
[383786758,1757116240159,-400.0,0.00059999,120]
[383786760,1757116240168,-400.0,0.00059999,120]
[383786762,1757116240178,-400.0,0.00059999,120]
[383786764,1757116240188,-400.0,0.00059999,30]
[383786766,1757116240197,-400.0,0.00059999,120]
[383786768,1757116240207,-400.0,0.00059999,120]
[383786770,1757116240217,-400.0,0.00059999,120]
[383786772,1757116240227,-400.0,0.00059999,120]
[383786774,1757116240236,-400.0,0.00059999,120]
[383786776,1757116240246,-1148.13,0.00059999,120]
[383786778,1757116240255,-400.0,0.00059999,120]
[383786780,1757116240265,-400.0,0.00059999,120]
[383786782,1757116240274,-400.0,0.00059999,120]
[383786784,1757116240284,-305.26319044,0.00059999,120]
[383786786,1757116240293,-400.0,0.00059999,120]
[383786788,1757116240303,-454.56,0.00059999,120]
[383786790,1757116240313,-400.0,0.00059999,120]
[383786792,1757116240322,-400.0,0.00059999,120]
[383786794,1757116240331,-410.28,0.00059999,120]
[383786796,1757116240341,-400.0,0.00059999,120]
[383786798,1757116240350,-400.0,0.00059999,120]
[383786800,1757116240359,-400.0,0.00059999,120]
[383786802,1757116240369,-465.32,0.00059999,120]
[383786804,1757116240378,-400.0,0.00059999,120]
[383786806,1757116240388,-400.0,0.00059999,120]
[383786808,1757116240398,-400.0,0.00059999,120]
[383786810,1757116240407,-400.0,0.00059999,120]
[383786812,1757116240416,-400.0,0.00059999,120]
[383786814,1757116240425,-400.0,0.00059999,120]
[383786816,1757116240436,-872.7559828,0.0006,120]
[383786818,1757116240445,-10000.0,0.0006,60]
[383786820,1757116240455,-400.0,0.00060116,120]
[383786822,1757116240464,-400.0,0.00060116,120]
[383786824,1757116240474,-400.0,0.00060116,14]
[383786826,1757116240484,-400.0,0.00060116,120]
[383786828,1757116240493,-400.0,0.00060116,120]
[383786830,1757116240502,-400.0,0.00060116,118]
[383786832,1757116240512,-400.0,0.00060116,120]
[383786834,1757116240521,-400.0,0.00060273,120]
[383786836,1757116240531,-400.0,0.00060273,120]
[383786838,1757116240540,-400.0,0.00060273,120]
[383786840,1757116240550,-400.0,0.00060273,120]
[383786842,1757116240560,-400.0,0.00060273,120]
[383786844,1757116240570,-400.0,0.00060273,120]
[383786846,1757116240579,-400.0,0.00060273,120]
[383786848,1757116240588,-400.0,0.00060273,120]
[383786850,1757116240598,-400.0,0.00060273,120]
[383786852,1757116240608,-400.0,0.00060273,120]
[383786854,1757116240617,-400.0,0.00060273,120]
[383786856,1757116240626,-400.0,0.00060273,120]
[383786858,1757116240636,-400.0,0.00060273,120]
[383786860,1757116240645,-400.0,0.00060273,120]
[383786862,1757116240655,-400.0,0.00060273,120]
[383786864,1757116240665,-400.0,0.00060273,120]
[383786866,1757116240674,-400.0,0.00060273,120]
[383786868,1757116240684,-400.0,0.00060273,120]
[383786870,1757116240693,-400.0,0.00060273,120]
[383786872,1757116240702,-400.0,0.00060273,120]
[383786874,1757116240711,-400.0,0.00060273,120]
[383786876,1757116240721,-1148.13,0.00060273,120]
[383786878,1757116240730,-227.96,0.00060273,120]
[383786880,1757116240741,-475.32,0.00060273,120]
[383786882,1757116240750,-400.0,0.00060273,120]
[383786884,1757116240759,-400.0,0.00060273,120]
[383786886,1757116240769,-400.0,0.00060273,120]
[383786888,1757116240779,-400.0,0.00060273,120]
[383786890,1757116240788,-400.0,0.00060273,120]
[383786892,1757116240797,-400.0,0.00060273,120]
[383786894,1757116240807,-400.0,0.0006039,120]
[383786896,1757116240816,-400.0,0.0006039,120]
[383786898,1757116240825,-400.0,0.0006039,14]
[383786900,1757116240835,-400.0,0.0006039,120]
[383786902,1757116240844,-400.0,0.0006039,118]
[383786904,1757116240853,-400.0,0.0006039,120]
[383786906,1757116240863,-181.481,0.0006041,120]
[383786908,1757116240872,-400.0,0.00060547,120]
[383786910,1757116240881,-400.0,0.00060547,120]
[383786912,1757116240890,-400.0,0.00060547,120]
[383786914,1757116240900,-400.0,0.00060547,120]
[383786916,1757116240910,-400.0,0.00060547,120]
[383786918,1757116240919,-400.0,0.00060547,120]
[383786920,1757116240928,-400.0,0.00060547,120]
[383786922,1757116240938,-400.0,0.00060547,120]
[383786924,1757116240948,-400.0,0.00060547,120]
[383786926,1757116240957,-347.14023131,0.00060547,120]
[383786928,1757116240966,-400.0,0.00060547,120]
[383786930,1757116240977,-400.0,0.00060547,120]
[383786932,1757116240986,-1148.13,0.00060547,120]
[383786934,1757116240996,-400.0,0.00060547,120]
[383786936,1757116241006,-400.0,0.00060547,120]
[383786938,1757116241016,-211.52674403,0.00060599,28]
[383786940,1757116241025,-991.32403519,0.00060656,120]
[383786942,1757116241035,-400.0,0.00060664,120]
[383786944,1757116241046,-400.0,0.00060664,120]
[383786946,1757116241055,-400.0,0.00060664,14]
[383786948,1757116241065,-355.69714168,0.00060664,120]
[383786950,1757116241074,-400.0,0.00060664,118]
[383786952,1757116241085,-400.0,0.00060664,120]
[383786954,1757116241095,-500.0,0.00060692,120]
[383786956,1757116241105,-923.0,0.00060699,120]
[383786958,1757116241114,-2032.0,0.00060699,120]
[383786960,1757116241124,-150.0,0.00060699,2]
[383786962,1757116241133,-150.0,0.00060699,2]
[383786964,1757116241143,-2875.0,0.00060699,120]
[383786966,1757116241152,-400.0,0.00060821,120]
[383786968,1757116241161,-400.0,0.00060821,120]
[383786970,1757116241171,-400.0,0.00060821,120]
[383786972,1757116241179,-400.0,0.00060821,120]
[383786974,1757116241189,-400.0,0.00060821,120]
[383786976,1757116241198,-400.0,0.00060821,120]
[383786978,1757116241207,-400.0,0.00060821,120]
[383786980,1757116241216,-400.0,0.00060821,120]
[383786982,1757116241226,-400.0,0.00060821,120]
[383786984,1757116241235,-400.0,0.00060821,120]
[383786986,1757116241245,-1148.13,0.00060821,120]
[383786988,1757116241254,-400.0,0.00060821,120]
[383786989,1757116241263,-400.0,0.00060938,120]
[383786991,1757116241272,-400.0,0.00060938,120]
[383786993,1757116241282,-400.0,0.00060938,14]
[383786995,1757116241291,-340.04,0.00060938,118]
[383786998,1757116241301,-400.0,0.00060938,120]
[383786999,1757116241310,-500.0,0.00061075,120]
[383787001,1757116241319,-400.0,0.00061095,120]
[383787003,1757116241329,-400.0,0.00061095,120]
[383787006,1757116241339,-417.68,0.00061095,120]
[383787008,1757116241349,-400.0,0.00061095,120]
[383787010,1757116241359,-439.12,0.00061095,120]
[383787012,1757116241368,-400.0,0.00061095,120]
[383787014,1757116241377,-400.0,0.00061095,120]
[383787015,1757116241386,-400.0,0.00061095,120]
[383787018,1757116241395,-1148.13,0.00061095,120]
[383787020,1757116241405,-400.0,0.00061095,120]
[383787021,1757116241414,-400.0,0.00061212,120]
[383787023,1757116241425,-273.7,0.00061212,120]
[383787025,1757116241434,-400.0,0.00061212,14]
[383787027,1757116241444,-400.0,0.00061212,120]
[383787029,1757116241453,-400.0,0.00061369,120]
[383787031,1757116241463,-400.0,0.00061369,120]
[383787033,1757116241472,-400.0,0.00061369,120]
[383787036,1757116241483,-548.54,0.00061369,120]
[383787037,1757116241495,-400.0,0.00061369,120]
[383787039,1757116241505,-400.0,0.00061369,120]
[383787042,1757116241515,-1148.13,0.00061369,120]
[383787043,1757116241524,-400.0,0.00061369,120]
[383787046,1757116241534,-400.0,0.00061486,120]
[383787047,1757116241543,-372.27,0.00061486,14]
[383787049,1757116241552,-400.0,0.00061486,120]
[383787051,1757116241562,-4191.78920297,0.00061633,5]
[383787053,1757116241571,-400.0,0.00061643,120]
[383787055,1757116241581,-466.48709795,0.00061643,120]
[383787057,1757116241589,-400.0,0.00061643,120]
[383787059,1757116241599,-400.0,0.00061643,120]
[383787061,1757116241608,-1148.13,0.00061643,120]
[383787063,1757116241617,-400.0,0.00061643,120]
[383787065,1757116241627,-500.0,0.0006165,120]
[383787067,1757116241637,-400.0,0.0006176,120]
[383787069,1757116241646,-400.0,0.0006176,120]
[383787071,1757116241655,-3054.85819058,0.0006183,33]
[383787074,1757116241665,-872.45793594,0.0006184,15]
[383787075,1757116241675,-4191.78920297,0.00061862,5]
[383787077,1757116241684,-400.0,0.00061872,120]
[383787079,1757116241693,-182.10790435,0.00061872,120]
[383787081,1757116241703,-400.0,0.00061872,120]
[383787084,1757116241712,-400.0,0.00061872,120]
[383787085,1757116241722,-400.0,0.00061872,120]
[383787088,1757116241731,-400.0,0.00061872,120]
[383787089,1757116241741,-400.0,0.00061872,120]
[383787091,1757116241750,-400.0,0.00061872,120]
[383787093,1757116241759,-400.0,0.00061872,120]
[383787095,1757116241768,-400.0,0.00061872,120]
[383787097,1757116241778,-400.0,0.00061872,120]
[383787099,1757116241787,-400.0,0.00061872,120]
[383787101,1757116241797,-437.24,0.00061872,120]
[383787103,1757116241806,-400.0,0.00061872,120]
[383787105,1757116241816,-400.0,0.00061872,120]
[383787107,1757116241826,-400.0,0.00061872,120]
[383787109,1757116241835,-403.82854988,0.00061872,120]
[383787111,1757116241845,-400.0,0.00061872,120]
[383787113,1757116241854,-400.0,0.00061872,120]
[383787115,1757116241863,-400.0,0.00061872,120]
[383787117,1757116241873,-400.0,0.00061872,120]
[383787120,1757116241883,-400.0,0.00061872,120]
[383787121,1757116241892,-400.0,0.00061872,120]
[383787124,1757116241902,-400.0,0.00061872,120]
[383787126,1757116241911,-400.0,0.00061872,120]
[383787127,1757116241920,-400.0,0.00061872,120]
[383787129,1757116241930,-400.0,0.00061872,120]
[383787131,1757116241939,-161.35886394,0.00061872,120]
[383787133,1757116241948,-498.18804929,0.00061872,120]
[383787135,1757116241957,-400.0,0.00061872,120]
[383787137,1757116241967,-400.0,0.00061872,120]
[383787139,1757116241976,-158.20607147,0.00061872,120]
[383787141,1757116241986,-400.0,0.00061872,2]
[383787143,1757116241996,-400.0,0.00061872,120]
[383787145,1757116242006,-400.0,0.00061872,120]
[383787147,1757116242015,-400.0,0.00061872,2]
[383787149,1757116242025,-400.0,0.00061872,120]
[383787151,1757116242034,-400.0,0.00061872,120]
[383787153,1757116242045,-400.0,0.00061872,120]
[383787155,1757116242054,-400.0,0.00061872,120]
[383787157,1757116242064,-400.0,0.00061872,120]
[383787159,1757116242073,-404.93976256,0.00061872,120]
[383787161,1757116242082,-400.0,0.00061872,120]
[383787164,1757116242092,-224.03370129,0.00061872,120]
[383787166,1757116242101,-400.0,0.00061872,120]
[383787167,1757116242111,-400.0,0.00061872,16]
[383787169,1757116242120,-400.0,0.00061872,120]
[383787171,1757116242129,-400.0,0.00061872,120]
[383787173,1757116242139,-400.0,0.00061872,120]
[383787175,1757116242148,-400.0,0.00061872,120]
[383787177,1757116242157,-400.0,0.00061872,120]
[383787179,1757116242167,-444.34328385,0.00061872,120]
[383787181,1757116242176,-401.94631343,0.00061872,120]
[383787183,1757116242185,-400.0,0.00061872,120]
[383787185,1757116242195,-400.0,0.00061872,120]
[383787187,1757116242204,-402.53908689,0.00061872,120]
[383787189,1757116242214,-400.0,0.00061872,120]
[383787191,1757116242224,-400.0,0.00061872,120]
[383787193,1757116242234,-400.0,0.00061872,3]
[383787195,1757116242243,-4191.78920297,0.00061907,5]
[383787197,1757116242252,-400.0,0.00061917,120]
[383787199,1757116242262,-400.0,0.00061917,120]
[383787201,1757116242272,-500.35,0.00061917,120]
[383787203,1757116242282,-1148.13,0.00061917,120]
[383787205,1757116242291,-400.0,0.00061917,120]
[383787207,1757116242300,-33534.3136238,0.00061921,5]
[383787209,1757116242309,-25150.7352178,0.0006193,5]
[383787211,1757116242319,-349.52835677,0.0006194,120]
[383787213,1757116242328,-400.0,0.0006194,120]
[383787215,1757116242338,-500.0,0.0006194,120]
[383787217,1757116242348,-400.0,0.0006194,120]
[383787219,1757116242359,-400.0,0.0006194,120]
[383787220,1757116242369,-400.0,0.0006194,120]
[383787223,1757116242379,-400.0,0.0006194,120]
[383787227,1757116242418,-400.0,0.0006194,120]
[383787229,1757116242427,-400.0,0.0006194,120]
[383787231,1757116242437,-477.62,0.0006194,120]
[383787233,1757116242446,-400.0,0.0006194,120]
[383787235,1757116242456,-400.0,0.0006194,120]
[383787237,1757116242466,-500.0,0.0006194,120]
[383787239,1757116242475,-400.0,0.0006194,120]
[383787241,1757116242485,-400.0,0.0006194,120]
[383787243,1757116242495,-400.0,0.0006194,120]
[383787245,1757116242506,-400.0,0.0006194,120]
[383787247,1757116242522,-400.0,0.0006194,120]
[383787249,1757116242532,-400.0,0.0006194,120]
[383787251,1757116242542,-490.21,0.0006194,120]
[383787253,1757116242557,-400.0,0.0006194,120]
[383787255,1757116242568,-400.0,0.0006194,120]
[383787257,1757116242578,-426.42,0.0006194,120]
[383787259,1757116242588,-400.0,0.0006194,120]
[383787261,1757116242598,-400.0,0.0006194,120]
[383787263,1757116242607,-400.0,0.0006194,120]
[383787265,1757116242617,-400.0,0.0006194,120]
[383787267,1757116242626,-400.0,0.0006194,120]
[383787269,1757116242636,-400.0,0.0006194,120]
[383787271,1757116242646,-400.0,0.0006194,120]
[383787273,1757116242656,-400.0,0.0006194,120]
[383787275,1757116242665,-400.0,0.0006194,120]
[383787277,1757116242674,-400.0,0.0006194,120]
[383787279,1757116242683,-405.17000535,0.0006194,120]
[383787280,1757116242692,-400.0,0.0006194,120]
[383787282,1757116242702,-400.0,0.0006194,120]
[383787284,1757116242711,-400.0,0.0006194,120]
[383787286,1757116242720,-400.0,0.0006194,120]
[383787288,1757116242730,-400.0,0.0006194,120]
[383787290,1757116242739,-400.0,0.0006194,120]
[383787292,1757116242748,-400.0,0.0006194,120]
[383787294,1757116242757,-400.0,0.0006194,120]
[383787296,1757116242767,-400.0,0.0006194,120]
[383787298,1757116242776,-400.0,0.0006194,120]
[383787300,1757116242786,-400.0,0.0006194,120]
[383787302,1757116242795,-500.0,0.0006194,120]
[383787304,1757116242805,-400.0,0.0006194,120]
[383787306,1757116242813,-400.0,0.0006194,120]
[383787308,1757116242823,-400.0,0.0006194,120]
[383787310,1757116242832,-400.0,0.0006194,120]
[383787312,1757116242841,-400.0,0.0006194,120]
[383787314,1757116242851,-400.0,0.0006194,120]
[383787316,1757116242860,-400.0,0.0006194,120]
[383787318,1757116242869,-1000.0,0.0006194,120]
[383787320,1757116242879,-400.0,0.0006194,120]
[383787322,1757116242888,-400.0,0.0006194,120]
[383787324,1757116242898,-400.0,0.0006194,120]
[383787326,1757116242907,-400.0,0.0006194,120]
[383787328,1757116242916,-400.0,0.0006194,120]
[383787330,1757116242926,-400.0,0.0006194,120]
[383787332,1757116242935,-400.0,0.0006194,120]
[383787334,1757116242945,-400.0,0.0006194,120]
[383787336,1757116242955,-400.0,0.0006194,2]
[383787338,1757116242963,-400.0,0.0006194,120]
[383787340,1757116242973,-400.0,0.0006194,120]
[383787342,1757116242983,-400.0,0.0006194,120]
[383787344,1757116242992,-400.0,0.0006194,120]
[383787346,1757116243001,-400.0,0.0006194,120]
[383787348,1757116243013,-400.0,0.0006194,120]
[383787350,1757116243022,-400.0,0.0006194,120]
[383787352,1757116243031,-400.0,0.0006194,120]
[383787354,1757116243040,-400.0,0.0006194,120]
[383787356,1757116243049,-400.0,0.0006194,120]
[383787357,1757116243059,-490.56,0.0006194,120]
[383787358,1757116243068,-400.0,0.0006194,120]
[383787359,1757116243077,-476.21,0.0006194,120]
[383787360,1757116243086,-400.0,0.0006194,120]
[383787361,1757116243095,-421.31,0.0006194,120]
[383787362,1757116243104,-400.0,0.0006194,120]
[383787363,1757116243114,-423.04870213,0.0006194,120]
[383787364,1757116243123,-400.0,0.0006194,120]
[383787365,1757116243132,-400.0,0.0006194,120]
[383787366,1757116243142,-400.0,0.0006194,120]
[383787367,1757116243151,-400.0,0.0006194,120]
[383787368,1757116243160,-404.27205924,0.0006194,120]
[383787370,1757116243169,-400.0,0.0006194,120]
[383787372,1757116243178,-400.0,0.0006194,120]
[383787374,1757116243187,-400.0,0.0006194,120]
[383787376,1757116243197,-400.0,0.0006194,120]
[383787378,1757116243206,-436.28,0.0006194,120]
[383787380,1757116243215,-400.0,0.0006194,120]
[383787382,1757116243224,-400.0,0.0006194,120]
[383787384,1757116243234,-400.0,0.0006194,120]
[383787387,1757116243243,-400.0,0.0006194,120]
[383787389,1757116243252,-400.0,0.0006194,120]
[383787391,1757116243262,-400.0,0.0006194,120]
[383787393,1757116243271,-400.0,0.0006194,120]
[383787395,1757116243280,-400.0,0.0006194,120]
[383787397,1757116243289,-436.51035306,0.0006194,120]
[383787399,1757116243299,-400.0,0.0006194,120]
[383787401,1757116243308,-300.0,0.00061973,15]
[383787403,1757116243317,-400.0,0.00062034,120]
[383787405,1757116243327,-400.0,0.00062034,120]
[383787407,1757116243336,-4191.78920297,0.00062136,5]
[383787409,1757116243345,-400.0,0.00062146,120]
[383787411,1757116243354,-400.0,0.00062146,120]
[383787413,1757116243363,-387.94595417,0.00062146,120]
[383787415,1757116243372,-400.0,0.00062146,120]
[383787417,1757116243381,-455.5,0.00062146,120]
[383787419,1757116243391,-400.0,0.00062146,120]
[383787421,1757116243401,-400.0,0.00062146,120]
[383787423,1757116243412,-400.0,0.00062146,120]
[383787425,1757116243423,-400.0,0.00062146,120]
[383787427,1757116243432,-400.0,0.00062146,120]
[383787429,1757116243441,-400.0,0.00062146,120]
[383787431,1757116243450,-400.0,0.00062146,120]
[383787433,1757116243460,-189.55,0.00062191,120]
[383787435,1757116243469,-1148.13,0.00062191,120]
[383787437,1757116243479,-400.0,0.00062191,120]
[383787438,1757116243489,-500.0,0.00062193,2]
[383787441,1757116243499,-4191.78920297,0.00062194,5]
[383787442,1757116243508,-12575.3676089,0.00062204,5]
[383787445,1757116243517,-256.77969706,0.00062214,120]
[383787447,1757116243527,-400.0,0.00062214,120]
[383787448,1757116243536,-400.0,0.00062214,120]
[383787450,1757116243546,-400.0,0.00062214,120]
[383787453,1757116243555,-400.0,0.00062214,120]
[383787455,1757116243566,-400.0,0.00062214,120]
[383787457,1757116243575,-478.34,0.00062214,120]
[383787459,1757116243585,-400.0,0.00062214,120]
[383787461,1757116243595,-478.22,0.00062214,120]
[383787463,1757116243605,-152.53931205,0.00062214,120]
[383787465,1757116243615,-400.0,0.00062214,120]
[383787467,1757116243624,-400.0,0.00062214,120]
[383787469,1757116243634,-215.04115874,0.00062214,120]
[383787471,1757116243644,-521.99,0.00062214,120]
[383787473,1757116243656,-420.06467616,0.00062214,120]
[383787475,1757116243671,-400.0,0.00062214,120]
[383787477,1757116243681,-158.4,0.00062214,120]
[383787479,1757116243690,-400.0,0.00062214,120]
[383787481,1757116243699,-400.0,0.00062214,120]
[383787483,1757116243709,-400.0,0.00062214,120]
[383787485,1757116243718,-400.0,0.00062214,120]
[383787487,1757116243727,-400.0,0.00062214,120]
[383787489,1757116243736,-400.0,0.00062214,120]
[383787491,1757116243747,-400.0,0.00062214,120]
[383787492,1757116243757,-400.0,0.00062214,120]
[383787494,1757116243766,-400.0,0.00062214,2]
[383787497,1757116243776,-400.0,0.00062214,120]
[383787499,1757116243786,-516.94871722,0.00062214,120]
[383787500,1757116243795,-209.58,0.00062214,120]
[383787502,1757116243806,-400.0,0.00062214,120]
[383787504,1757116243815,-400.0,0.00062214,120]
[383787506,1757116243824,-400.0,0.00062214,120]
[383787508,1757116243833,-400.0,0.00062214,120]
[383787510,1757116243842,-400.0,0.00062214,120]
[383787512,1757116243852,-400.0,0.00062214,120]
[383787514,1757116243861,-400.0,0.00062214,120]
[383787516,1757116243871,-400.0,0.00062214,120]
[383787518,1757116243880,-400.0,0.00062214,120]
[383787520,1757116243890,-400.0,0.00062214,120]
[383787522,1757116243899,-400.0,0.00062214,120]
[383787524,1757116243909,-400.0,0.00062214,120]
[383787526,1757116243918,-400.0,0.00062214,120]
[383787528,1757116243927,-400.0,0.00062214,120]
[383787530,1757116243937,-368.81715292,0.00062214,120]
[383787532,1757116243947,-400.0,0.00062214,120]
[383787534,1757116243956,-400.0,0.00062214,120]
[383787536,1757116243965,-400.0,0.00062214,120]
[383787538,1757116243975,-400.0,0.00062308,120]
[383787540,1757116243984,-400.0,0.00062308,120]
[383787542,1757116243994,-400.0,0.0006242,120]
[383787544,1757116244003,-400.0,0.0006242,120]
[383787546,1757116244012,-400.0,0.0006242,120]
[383787548,1757116244022,-400.0,0.0006242,120]
[383787550,1757116244032,-400.0,0.0006242,120]
[383787552,1757116244042,-400.0,0.0006242,120]
[383787554,1757116244052,-400.0,0.0006242,120]
[383787556,1757116244061,-467.6234552,0.0006242,120]
[383787559,1757116244070,-400.0,0.0006242,120]
[383787562,1757116244080,-400.0,0.0006242,120]
[383787565,1757116244089,-4191.78920297,0.00062455,5]
[383787568,1757116244100,-1148.13,0.00062465,120]
[383787572,1757116244110,-166.48,0.00062465,120]
[383787574,1757116244119,-8383.57840594,0.00062478,5]
[383787577,1757116244128,-400.0,0.00062488,120]
[383787581,1757116244138,-494.06,0.00062488,120]
[383787585,1757116244148,-400.0,0.00062488,120]
[383787587,1757116244157,-400.0,0.00062488,120]
[383787589,1757116244166,-400.0,0.00062488,120]
[383787591,1757116244175,-400.0,0.00062488,120]
[383787593,1757116244185,-400.0,0.00062488,120]
[383787596,1757116244194,-400.0,0.00062488,120]
[383787598,1757116244204,-400.0,0.00062488,120]
[383787600,1757116244213,-400.0,0.00062488,120]
[383787602,1757116244223,-400.0,0.00062488,120]